[Event "Titled Tuesday Blitz May 25 2021"]
[White "Acor, Corey"]
[Black "Schmakel, Sam"]
[WhiteFideId "2024861"]
[BlackFideId "2039311"]
[WhiteElo "2803"]
[BlackElo "2356"]
[Result "1-0"]
[Round "07"]
[TimeControl "180+1"]
[Date "2021.05.25"]
[WhiteClock "0:00:28"]
[BlackClock "0:00:07"]

1. e4 {[%clk 0:03:00]}  e5 {[%clk 0:02:59]} 2. Nf3 {[%clk 0:03:00]}  Nc6 {[%clk 0:03:00]} 3. Bc4 {[%clk 0:02:59]}  Bc5 {[%clk 0:02:59]} 4. c3 {[%clk 0:02:56]}  Nf6 {[%clk 0:03:00]} 5. d4 {[%clk 0:02:55]}  exd4 {[%clk 0:03:00]} 6. cxd4 {[%clk 0:02:56]}  Bb4+ {[%clk 0:03:01]} 7. Bd2 {[%clk 0:02:54]}  Bxd2+ {[%clk 0:03:00]} 8. Nbxd2 {[%clk 0:02:55]}  d5 {[%clk 0:03:00]} 9. exd5 {[%clk 0:02:54]}  Nxd5 {[%clk 0:03:01]} 10. O-O {[%clk 0:02:55]}  O-O {[%clk 0:03:01]} 11. Re1 {[%clk 0:02:53]}  Nb6 {[%clk 0:02:52]} 12. Bd3 {[%clk 0:02:53]}  h6 {[%clk 0:02:35]} 13. Nb3 {[%clk 0:02:47]}  Re8 {[%clk 0:01:53]} 14. h3 {[%clk 0:02:35]}  Nb4 {[%clk 0:01:15]} 15. Be4 {[%clk 0:02:17]}  c6 {[%clk 0:01:08]} 16. Qd2 {[%clk 0:02:09]}  N4d5 {[%clk 0:01:08]} 17. Rac1 {[%clk 0:02:06]}  Be6 {[%clk 0:00:56]} 18. Nc5 {[%clk 0:02:06]}  Re7 {[%clk 0:00:57]} 19. Bb1 {[%clk 0:01:58]}  Qd6 {[%clk 0:00:55]} 20. Ne5 {[%clk 0:01:55]}  Rae8 {[%clk 0:00:50]} 21. b3 {[%clk 0:01:56]}  Bc8 {[%clk 0:00:45]} 22. Ne4 {[%clk 0:01:42]}  Qd8 {[%clk 0:00:42]} 23. Ng3 {[%clk 0:01:39]}  f6 {[%clk 0:00:23]} 24. Ng6 {[%clk 0:01:38]}  Rxe1+ {[%clk 0:00:23]} 25. Rxe1 {[%clk 0:01:39]}  Rxe1+ {[%clk 0:00:16]} 26. Qxe1 {[%clk 0:01:40]}  Kf7 {[%clk 0:00:17]} 27. Bd3 {[%clk 0:01:32]}  Ne7 {[%clk 0:00:15]} 28. Nxe7 {[%clk 0:01:24]}  Qxe7 {[%clk 0:00:16]} 29. Bg6+ {[%clk 0:01:24]}  Kf8 {[%clk 0:00:16]} 30. Qa5 {[%clk 0:01:25]}  Nd5 {[%clk 0:00:09]} 31. Qxa7 {[%clk 0:01:23]}  Qd6 {[%clk 0:00:04]} 32. Qa8 {[%clk 0:01:14]}  Qc7 {[%clk 0:00:04]} 33. Bf5 {[%clk 0:01:06]}  Ne7 {[%clk 0:00:04]} 34. Bxc8 {[%clk 0:01:00]}  Nxc8 {[%clk 0:00:05]} 35. Nf5 {[%clk 0:00:57]}  g6 {[%clk 0:00:06]} 36. Nxh6 {[%clk 0:00:53]}  f5 {[%clk 0:00:06]} 37. g4 {[%clk 0:00:41]}  Kg7 {[%clk 0:00:06]} 38. g5 {[%clk 0:00:38]}  Qf4 {[%clk 0:00:07]} 39. Qxb7+ {[%clk 0:00:28]} 1-0


[Site "https://www.chess.com"]

[Event "Titled Tuesday Blitz May 25 2021"]
[White "Andreikin, Dmitry"]
[Black "Erigaisi Arjun"]
[WhiteFideId "4158814"]
[BlackFideId "35009192"]
[WhiteElo "2782"]
[BlackElo "2609"]
[Result "1-0"]
[Round "07"]
[TimeControl "180+1"]
[Date "2021.05.25"]
[WhiteClock "0:00:03"]
[BlackClock "0:00:04"]

1. e4 {[%clk 0:03:00]}  c5 {[%clk 0:02:59]} 2. Nc3 {[%clk 0:03:00]}  e6 {[%clk 0:02:59]} 3. Nge2 {[%clk 0:03:00]}  a6 {[%clk 0:02:56]} 4. d4 {[%clk 0:02:57]}  cxd4 {[%clk 0:02:57]} 5. Nxd4 {[%clk 0:02:58]}  d6 {[%clk 0:02:58]} 6. Be3 {[%clk 0:02:52]}  Nf6 {[%clk 0:02:57]} 7. a4 {[%clk 0:02:50]}  b6 {[%clk 0:02:54]} 8. g4 {[%clk 0:02:36]}  Bb7 {[%clk 0:02:54]} 9. Bg2 {[%clk 0:02:35]}  Qc7 {[%clk 0:02:49]} 10. g5 {[%clk 0:02:34]}  Nfd7 {[%clk 0:02:48]} 11. f4 {[%clk 0:02:33]}  g6 {[%clk 0:02:40]} 12. f5 {[%clk 0:02:18]}  gxf5 {[%clk 0:02:04]} 13. O-O {[%clk 0:02:14]}  f4 {[%clk 0:01:50]} 14. Qh5 {[%clk 0:01:47]}  e5 {[%clk 0:01:43]} 15. Ne6 {[%clk 0:01:44]}  Qc4 {[%clk 0:01:38]} 16. Nd5 {[%clk 0:01:44]}  Bxd5 {[%clk 0:01:24]} 17. exd5 {[%clk 0:01:45]}  Qxc2 {[%clk 0:01:15]} 18. Rac1 {[%clk 0:01:35]}  Qg6 {[%clk 0:01:14]} 19. Qh3 {[%clk 0:00:58]}  fxe6 {[%clk 0:00:49]} 20. dxe6 {[%clk 0:00:52]}  Ra7 {[%clk 0:00:42]} 21. exd7+ {[%clk 0:00:35]}  Nxd7 {[%clk 0:00:43]} 22. Bd5 {[%clk 0:00:28]}  fxe3 {[%clk 0:00:22]} 23. Rc8+ {[%clk 0:00:15]}  Ke7 {[%clk 0:00:23]} 24. Rf7+ {[%clk 0:00:13]}  Qxf7 {[%clk 0:00:22]} 25. Bxf7 {[%clk 0:00:14]}  Kxf7 {[%clk 0:00:23]} 26. Qf5+ {[%clk 0:00:13]}  Ke7 {[%clk 0:00:20]} 27. Kf1 {[%clk 0:00:12]}  d5 {[%clk 0:00:12]} 28. Ke2 {[%clk 0:00:10]}  d4 {[%clk 0:00:13]} 29. h4 {[%clk 0:00:08]}  Rg8 {[%clk 0:00:10]} 30. Qxh7+ {[%clk 0:00:07]}  Rg7 {[%clk 0:00:10]} 31. Qh5 {[%clk 0:00:06]}  Rf7 {[%clk 0:00:09]} 32. g6 {[%clk 0:00:05]}  Rf2+ {[%clk 0:00:09]} 33. Kd3 {[%clk 0:00:05]}  Nc5+ {[%clk 0:00:07]} 34. Rxc5 {[%clk 0:00:03]}  bxc5 {[%clk 0:00:08]} 35. Qxe5+ {[%clk 0:00:03]}  Kd7 {[%clk 0:00:08]} 36. h5 {[%clk 0:00:04]}  Bd6 {[%clk 0:00:06]} 37. Qd5 {[%clk 0:00:04]}  Rd2+ {[%clk 0:00:05]} 38. Kc4 {[%clk 0:00:03]}  e2 {[%clk 0:00:05]} 39. Qf7+ {[%clk 0:00:03]}  Be7 {[%clk 0:00:05]} 40. Qf5+ {[%clk 0:00:03]}  Kc6 {[%clk 0:00:05]} 41. Qe4+ {[%clk 0:00:03]}  Kb6 {[%clk 0:00:04]} 42. g7 {[%clk 0:00:03]}  Bf6 {[%clk 0:00:03]} 43. g8=Q {[%clk 0:00:03]}  Re7 {[%clk 0:00:04]} 44. Qb8+ {[%clk 0:00:03]}  Ka5 {[%clk 0:00:04]} 45. Qd8+ {[%clk 0:00:03]}  Kxa4 {[%clk 0:00:04]} 46. Qc6# {[%clk 0:00:03]} 1-0


[Site "https://www.chess.com"]

[Event "Titled Tuesday Blitz May 25 2021"]
[White "Annaberdiyev, Babageldi"]
[Black "korbul"]
[WhiteFideId "14000385"]
[WhiteElo "2332"]
[BlackElo "2575"]
[Result "1-0"]
[Round "07"]
[TimeControl "180+1"]
[Date "2021.05.25"]
[WhiteClock "0:01:05"]
[BlackClock "0:00:16"]

1. e4 {[%clk 0:02:58]}  c5 {[%clk 0:02:59]} 2. Nf3 {[%clk 0:02:58]}  e6 {[%clk 0:02:58]} 3. d3 {[%clk 0:02:58]}  d5 {[%clk 0:02:57]} 4. Nbd2 {[%clk 0:02:59]}  Nf6 {[%clk 0:02:57]} 5. g3 {[%clk 0:02:59]}  Nc6 {[%clk 0:02:57]} 6. Bg2 {[%clk 0:02:59]}  Be7 {[%clk 0:02:57]} 7. O-O {[%clk 0:03:00]}  O-O {[%clk 0:02:57]} 8. e5 {[%clk 0:03:00]}  Ne8 {[%clk 0:02:56]} 9. Re1 {[%clk 0:03:01]}  Nc7 {[%clk 0:02:56]} 10. c3 {[%clk 0:03:01]}  b5 {[%clk 0:02:56]} 11. Nf1 {[%clk 0:03:01]}  Rb8 {[%clk 0:02:55]} 12. h4 {[%clk 0:03:01]}  b4 {[%clk 0:02:55]} 13. h5 {[%clk 0:03:01]}  h6 {[%clk 0:02:54]} 14. Bf4 {[%clk 0:02:58]}  bxc3 {[%clk 0:02:53]} 15. bxc3 {[%clk 0:02:59]}  Nb5 {[%clk 0:02:53]} 16. Qd2 {[%clk 0:02:54]}  d4 {[%clk 0:02:49]} 17. c4 {[%clk 0:02:53]}  Nc3 {[%clk 0:02:48]} 18. N1h2 {[%clk 0:02:52]}  a5 {[%clk 0:02:41]} 19. Ng4 {[%clk 0:02:52]}  a4 {[%clk 0:02:17]} 20. Bxh6 {[%clk 0:02:44]}  f5 {[%clk 0:02:11]} 21. exf6 {[%clk 0:02:43]}  Bxf6 {[%clk 0:02:10]} 22. Bf4 {[%clk 0:02:33]}  Rb6 {[%clk 0:02:03]} 23. h6 {[%clk 0:02:33]}  a3 {[%clk 0:02:02]} 24. hxg7 {[%clk 0:02:32]}  Bxg7 {[%clk 0:02:01]} 25. Nh6+ {[%clk 0:02:10]}  Kh8 {[%clk 0:01:56]} 26. Nh4 {[%clk 0:02:08]}  Ne7 {[%clk 0:01:34]} 27. Be5 {[%clk 0:01:46]}  Bxe5 {[%clk 0:01:03]} 28. Rxe5 {[%clk 0:01:46]}  Qe8 {[%clk 0:00:58]} 29. Qg5 {[%clk 0:01:41]}  Rb2 {[%clk 0:00:50]} 30. Rf1 {[%clk 0:01:40]}  Kh7 {[%clk 0:00:34]} 31. Rxc5 {[%clk 0:01:32]}  Bd7 {[%clk 0:00:20]} 32. Rc7 {[%clk 0:01:24]}  Rxa2 {[%clk 0:00:20]} 33. c5 {[%clk 0:01:21]}  Ncd5 {[%clk 0:00:16]} 34. Be4+ {[%clk 0:01:20]}  Kh8 {[%clk 0:00:14]} 35. Qxe7 {[%clk 0:01:18]}  Qxe7 {[%clk 0:00:14]} 36. Ng6+ {[%clk 0:01:18]}  Kg7 {[%clk 0:00:15]} 37. Nxe7 {[%clk 0:01:18]}  Nxe7 {[%clk 0:00:14]} 38. Rxd7 {[%clk 0:01:18]}  Kxh6 {[%clk 0:00:15]} 39. Rxe7 {[%clk 0:01:18]}  Rb2 {[%clk 0:00:16]} 40. Rxe6+ {[%clk 0:01:18]}  Kg7 {[%clk 0:00:14]} 41. Ra6 {[%clk 0:01:19]}  a2 {[%clk 0:00:14]} 42. c6 {[%clk 0:01:19]}  Rc8 {[%clk 0:00:13]} 43. Ra7+ {[%clk 0:01:19]}  Kf6 {[%clk 0:00:13]} 44. Kg2 {[%clk 0:01:19]}  Ke5 {[%clk 0:00:13]} 45. c7 {[%clk 0:01:15]}  Kd6 {[%clk 0:00:14]} 46. Ra1 {[%clk 0:01:13]}  Rf8 {[%clk 0:00:15]} 47. Bf3 {[%clk 0:01:07]}  Rc8 {[%clk 0:00:13]} 48. R1xa2 {[%clk 0:01:06]}  Rxa2 {[%clk 0:00:14]} 49. Rxa2 {[%clk 0:01:06]}  Rxc7 {[%clk 0:00:15]} 50. Ra4 {[%clk 0:01:07]}  Ke5 {[%clk 0:00:16]} 51. Ra5+ {[%clk 0:01:06]}  Ke6 {[%clk 0:00:17]} 52. Rd5 {[%clk 0:01:06]}  Rc2 {[%clk 0:00:15]} 53. Rxd4 {[%clk 0:01:06]}  Ke5 {[%clk 0:00:16]} 54. Re4+ {[%clk 0:01:06]}  Kf5 {[%clk 0:00:16]} 55. Rf4+ {[%clk 0:01:05]} 1-0


[Site "https://www.chess.com"]

[Event "Titled Tuesday Blitz May 25 2021"]
[White "Aravindh, Chithambaram VR."]
[Black "Seletsky, Grigory"]
[WhiteFideId "5072786"]
[BlackFideId "14112191"]
[WhiteElo "2600"]
[BlackElo "2492"]
[Result "1-0"]
[Round "07"]
[TimeControl "180+1"]
[Date "2021.05.25"]
[WhiteClock "0:02:21"]
[BlackClock "0:01:19"]

1. b3 {[%clk 0:02:57]}  e5 {[%clk 0:02:59]} 2. Bb2 {[%clk 0:02:58]}  Nc6 {[%clk 0:02:59]} 3. c4 {[%clk 0:02:58]}  d6 {[%clk 0:02:53]} 4. g3 {[%clk 0:02:55]}  g6 {[%clk 0:02:53]} 5. Bg2 {[%clk 0:02:55]}  Bg7 {[%clk 0:02:54]} 6. e3 {[%clk 0:02:55]}  Nge7 {[%clk 0:02:54]} 7. Ne2 {[%clk 0:02:55]}  O-O {[%clk 0:02:54]} 8. d4 {[%clk 0:02:55]}  f5 {[%clk 0:02:55]} 9. Nbc3 {[%clk 0:02:54]}  a6 {[%clk 0:02:48]} 10. Qd2 {[%clk 0:02:49]}  Bd7 {[%clk 0:02:47]} 11. f4 {[%clk 0:02:44]}  e4 {[%clk 0:02:39]} 12. a3 {[%clk 0:02:44]}  Be8 {[%clk 0:02:35]} 13. d5 {[%clk 0:02:43]}  Nb8 {[%clk 0:02:35]} 14. Nd4 {[%clk 0:02:42]}  Bf7 {[%clk 0:02:35]} 15. g4 {[%clk 0:02:42]}  c5 {[%clk 0:02:22]} 16. Ne6 {[%clk 0:02:42]}  Bxe6 {[%clk 0:02:21]} 17. dxe6 {[%clk 0:02:43]}  Nbc6 {[%clk 0:02:19]} 18. gxf5 {[%clk 0:02:39]}  gxf5 {[%clk 0:02:17]} 19. Rg1 {[%clk 0:02:39]}  Ng6 {[%clk 0:02:14]} 20. O-O-O {[%clk 0:02:36]}  Qb6 {[%clk 0:02:12]} 21. Qc2 {[%clk 0:02:30]}  Nce7 {[%clk 0:01:52]} 22. h4 {[%clk 0:02:26]}  Kh8 {[%clk 0:01:47]} 23. h5 {[%clk 0:02:25]}  Nxf4 {[%clk 0:01:25]} 24. exf4 {[%clk 0:02:24]}  Rg8 {[%clk 0:01:22]} 25. Bxe4 {[%clk 0:02:21]}  fxe4 {[%clk 0:01:20]} 26. Rxg7 {[%clk 0:02:21]}  Rxg7 {[%clk 0:01:19]} 27. h6 {[%clk 0:02:21]} 1-0


[Site "https://www.chess.com"]

[Event "Titled Tuesday Blitz May 25 2021"]
[White "Asis Gargatagli, Hipolito"]
[Black "Tabatabaei, M. Amin"]
[WhiteFideId "2260735"]
[BlackFideId "12521213"]
[WhiteElo "2557"]
[BlackElo "2555"]
[Result "1-0"]
[Round "07"]
[TimeControl "180+1"]
[Date "2021.05.25"]
[WhiteClock "0:00:37"]
[BlackClock "0:00:03"]

1. e4 {[%clk 0:02:58]}  b6 {[%clk 0:03:00]} 2. d4 {[%clk 0:02:55]}  Bb7 {[%clk 0:03:01]} 3. Bd3 {[%clk 0:02:56]}  e6 {[%clk 0:03:01]} 4. Nc3 {[%clk 0:02:53]}  Nf6 {[%clk 0:03:00]} 5. Nge2 {[%clk 0:02:53]}  d5 {[%clk 0:03:01]} 6. e5 {[%clk 0:02:53]}  Nfd7 {[%clk 0:03:01]} 7. Nf4 {[%clk 0:02:53]}  Ba6 {[%clk 0:02:55]} 8. Nxe6 {[%clk 0:02:49]}  Qc8 {[%clk 0:02:23]} 9. Nxf8 {[%clk 0:02:44]}  Nxf8 {[%clk 0:02:20]} 10. Nxd5 {[%clk 0:02:42]}  Ne6 {[%clk 0:02:20]} 11. O-O {[%clk 0:02:40]}  Bb7 {[%clk 0:02:16]} 12. Be4 {[%clk 0:02:36]}  Qd8 {[%clk 0:02:13]} 13. Nf6+ {[%clk 0:02:35]}  gxf6 {[%clk 0:02:04]} 14. Bxb7 {[%clk 0:02:35]}  Nd7 {[%clk 0:02:05]} 15. Bxa8 {[%clk 0:02:26]}  Qxa8 {[%clk 0:02:06]} 16. d5 {[%clk 0:02:26]}  Nec5 {[%clk 0:02:02]} 17. exf6 {[%clk 0:02:26]}  Kd8 {[%clk 0:01:58]} 18. c4 {[%clk 0:02:23]}  Rg8 {[%clk 0:01:58]} 19. Be3 {[%clk 0:02:17]}  Ne5 {[%clk 0:01:54]} 20. Qh5 {[%clk 0:02:10]}  Ncd3 {[%clk 0:01:52]} 21. f4 {[%clk 0:02:04]}  Nxc4 {[%clk 0:01:43]} 22. Qxf7 {[%clk 0:01:57]}  Re8 {[%clk 0:01:43]} 23. Bd4 {[%clk 0:01:52]}  Nd6 {[%clk 0:01:38]} 24. Qh5 {[%clk 0:01:46]}  Nb4 {[%clk 0:01:18]} 25. f7 {[%clk 0:01:28]}  Rf8 {[%clk 0:01:18]} 26. Bf6+ {[%clk 0:01:28]}  Kc8 {[%clk 0:01:17]} 27. Be7 {[%clk 0:01:28]}  Kb7 {[%clk 0:01:14]} 28. Bxf8 {[%clk 0:01:19]}  Qxf8 {[%clk 0:01:15]} 29. a3 {[%clk 0:01:18]}  Nd3 {[%clk 0:01:14]} 30. f5 {[%clk 0:01:13]}  Nxf7 {[%clk 0:01:05]} 31. b4 {[%clk 0:01:13]}  Qe7 {[%clk 0:00:52]} 32. f6 {[%clk 0:01:13]}  Qe3+ {[%clk 0:00:51]} 33. Kh1 {[%clk 0:01:14]}  Nde5 {[%clk 0:00:16]} 34. Rae1 {[%clk 0:01:01]}  Qd3 {[%clk 0:00:16]} 35. Qe2 {[%clk 0:00:56]}  Qxa3 {[%clk 0:00:15]} 36. d6 {[%clk 0:00:56]}  cxd6 {[%clk 0:00:15]} 37. Qe4+ {[%clk 0:00:56]}  Kb8 {[%clk 0:00:15]} 38. Qxh7 {[%clk 0:00:56]}  Qa6 {[%clk 0:00:09]} 39. h3 {[%clk 0:00:49]}  Qc4 {[%clk 0:00:09]} 40. Qe4 {[%clk 0:00:45]}  Qe6 {[%clk 0:00:08]} 41. Rc1 {[%clk 0:00:44]}  Ng5 {[%clk 0:00:07]} 42. Qc2 {[%clk 0:00:42]}  Qd7 {[%clk 0:00:06]} 43. Qf5 {[%clk 0:00:40]}  Qxf5 {[%clk 0:00:04]} 44. Rxf5 {[%clk 0:00:41]}  Ngf7 {[%clk 0:00:05]} 45. g4 {[%clk 0:00:39]}  Kb7 {[%clk 0:00:05]} 46. g5 {[%clk 0:00:39]}  Ng6 {[%clk 0:00:05]} 47. Re1 {[%clk 0:00:39]}  Kc6 {[%clk 0:00:05]} 48. Re7 {[%clk 0:00:38]}  Nfe5 {[%clk 0:00:02]} 49. Rexe5 {[%clk 0:00:36]}  Nxe5 {[%clk 0:00:01]} 50. f7 {[%clk 0:00:36]}  Nd7 {[%clk 0:00:01]} 51. f8=Q {[%clk 0:00:36]}  Nxf8 {[%clk 0:00:02]} 52. Rxf8 {[%clk 0:00:37]}  Kb5 {[%clk 0:00:03]} 53. g6 {[%clk 0:00:37]} 1-0


[Site "https://www.chess.com"]

[Event "Titled Tuesday Blitz May 25 2021"]
[White "Barp, Alberto"]
[Black "Yuan, Qingyu"]
[WhiteFideId "872555"]
[BlackFideId "8609772"]
[WhiteElo "2229"]
[BlackElo "2359"]
[Result "1/2-1/2"]
[Round "07"]
[TimeControl "180+1"]
[Date "2021.05.25"]
[WhiteClock "0:00:08"]
[BlackClock "0:00:03"]

1. d4 {[%clk 0:03:00]}  Nf6 {[%clk 0:03:00]} 2. c4 {[%clk 0:02:58]}  g6 {[%clk 0:03:00]} 3. g3 {[%clk 0:02:57]}  c6 {[%clk 0:03:00]} 4. Bg2 {[%clk 0:02:58]}  d5 {[%clk 0:03:00]} 5. cxd5 {[%clk 0:02:59]}  cxd5 {[%clk 0:03:01]} 6. Nc3 {[%clk 0:03:00]}  Bg7 {[%clk 0:03:01]} 7. Nf3 {[%clk 0:03:01]}  O-O {[%clk 0:03:01]} 8. Ne5 {[%clk 0:03:00]}  e6 {[%clk 0:02:52]} 9. O-O {[%clk 0:02:59]}  Nfd7 {[%clk 0:02:52]} 10. Nf3 {[%clk 0:02:59]}  Nc6 {[%clk 0:02:52]} 11. b3 {[%clk 0:02:56]}  b6 {[%clk 0:02:48]} 12. Ba3 {[%clk 0:02:53]}  Re8 {[%clk 0:02:47]} 13. Nb5 {[%clk 0:02:53]}  Ba6 {[%clk 0:02:39]} 14. Nd6 {[%clk 0:02:41]}  Bf8 {[%clk 0:02:29]} 15. Qc1 {[%clk 0:02:32]}  Bxd6 {[%clk 0:02:08]} 16. Bxd6 {[%clk 0:02:33]}  Rc8 {[%clk 0:02:08]} 17. Qd1 {[%clk 0:02:25]}  Nf6 {[%clk 0:02:04]} 18. Ba3 {[%clk 0:02:20]}  Ne4 {[%clk 0:02:02]} 19. Rc1 {[%clk 0:02:20]}  Ne7 {[%clk 0:01:57]} 20. Re1 {[%clk 0:02:15]}  Nf5 {[%clk 0:01:48]} 21. e3 {[%clk 0:02:07]}  f6 {[%clk 0:01:34]} 22. Rxc8 {[%clk 0:01:57]}  Qxc8 {[%clk 0:01:33]} 23. Qa1 {[%clk 0:01:58]}  Qc2 {[%clk 0:01:25]} 24. Qb2 {[%clk 0:01:57]}  Rc8 {[%clk 0:01:09]} 25. Rc1 {[%clk 0:01:49]}  Qxc1+ {[%clk 0:01:09]} 26. Qxc1 {[%clk 0:01:50]}  Rxc1+ {[%clk 0:01:08]} 27. Bxc1 {[%clk 0:01:51]}  Nc3 {[%clk 0:01:09]} 28. Bd2 {[%clk 0:01:50]}  Nxa2 {[%clk 0:01:01]} 29. g4 {[%clk 0:01:50]}  Nd6 {[%clk 0:01:01]} 30. g5 {[%clk 0:01:51]}  f5 {[%clk 0:00:50]} 31. Ne5 {[%clk 0:01:31]}  Bb5 {[%clk 0:00:50]} 32. Bf1 {[%clk 0:01:17]}  Bxf1 {[%clk 0:00:30]} 33. Kxf1 {[%clk 0:01:18]}  Ne4 {[%clk 0:00:30]} 34. Be1 {[%clk 0:01:07]}  Nc1 {[%clk 0:00:24]} 35. b4 {[%clk 0:01:04]}  a6 {[%clk 0:00:16]} 36. h4 {[%clk 0:00:55]}  Nb3 {[%clk 0:00:11]} 37. Nd7 {[%clk 0:00:50]}  b5 {[%clk 0:00:10]} 38. Nb8 {[%clk 0:00:45]}  Kf7 {[%clk 0:00:07]} 39. Nxa6 {[%clk 0:00:43]}  Nbd2+ {[%clk 0:00:07]} 40. Ke2 {[%clk 0:00:29]}  Nc4 {[%clk 0:00:08]} 41. Nc7 {[%clk 0:00:28]}  Ned6 {[%clk 0:00:08]} 42. f3 {[%clk 0:00:26]}  Ke7 {[%clk 0:00:08]} 43. Bg3 {[%clk 0:00:26]}  Kd7 {[%clk 0:00:07]} 44. Na6 {[%clk 0:00:25]}  Nb7 {[%clk 0:00:06]} 45. Kd3 {[%clk 0:00:20]}  Nb6 {[%clk 0:00:04]} 46. Bf4 {[%clk 0:00:18]}  Nc4 {[%clk 0:00:04]} 47. Kc3 {[%clk 0:00:18]}  Na3 {[%clk 0:00:04]} 48. Nb8+ {[%clk 0:00:16]}  Kc8 {[%clk 0:00:03]} 49. Nc6 {[%clk 0:00:16]}  Kd7 {[%clk 0:00:04]} 50. Na7 {[%clk 0:00:15]}  Nd6 {[%clk 0:00:03]} 51. Bxd6 {[%clk 0:00:07]}  Kxd6 {[%clk 0:00:03]} 52. Kb3 {[%clk 0:00:08]}  Nc4 {[%clk 0:00:04]} 53. Nxb5+ {[%clk 0:00:08]}  Kc6 {[%clk 0:00:04]} 54. Nc3 {[%clk 0:00:07]}  Nxe3 {[%clk 0:00:04]} 55. Ne2 {[%clk 0:00:08]}  Ng2 {[%clk 0:00:04]} 56. Ka4 {[%clk 0:00:07]}  Nxh4 {[%clk 0:00:04]} 57. f4 {[%clk 0:00:07]}  Nf3 {[%clk 0:00:04]} 58. Ka5 {[%clk 0:00:07]}  Kb7 {[%clk 0:00:03]} 59. Kb5 {[%clk 0:00:06]}  Nd2 {[%clk 0:00:03]} 60. Kc5 {[%clk 0:00:06]}  Ne4+ {[%clk 0:00:03]} 61. Kb5 {[%clk 0:00:07]}  Nd6+ {[%clk 0:00:03]} 62. Kc5 {[%clk 0:00:07]}  Nf7 {[%clk 0:00:03]} 63. Nc1 {[%clk 0:00:06]}  h6 {[%clk 0:00:03]} 64. gxh6 {[%clk 0:00:07]}  Nxh6 {[%clk 0:00:04]} 65. Nd3 {[%clk 0:00:08]}  Nf7 {[%clk 0:00:03]} 66. b5 {[%clk 0:00:09]}  g5 {[%clk 0:00:04]} 67. fxg5 {[%clk 0:00:09]}  Nxg5 {[%clk 0:00:04]} 68. Kd6 {[%clk 0:00:06]}  Nf3 {[%clk 0:00:04]} 69. Kxe6 {[%clk 0:00:06]}  Nxd4+ {[%clk 0:00:04]} 70. Kxd5 {[%clk 0:00:07]}  Nxb5 {[%clk 0:00:04]} 71. Ke5 {[%clk 0:00:07]}  Nc7 {[%clk 0:00:03]} 72. Kxf5 {[%clk 0:00:08]} 1/2-1/2


[Site "https://www.chess.com"]

[Event "Titled Tuesday Blitz May 25 2021"]
[White "Belenkaya, Dina"]
[Black "Aradhya, Garg"]
[WhiteFideId "24142654"]
[BlackFideId "25006746"]
[WhiteElo "2247"]
[BlackElo "2146"]
[Result "0-1"]
[Round "07"]
[TimeControl "180+1"]
[Date "2021.05.25"]
[WhiteClock "0:00:12"]
[BlackClock "0:00:52"]

1. e4 {[%clk 0:03:00]}  e5 {[%clk 0:02:59]} 2. Nf3 {[%clk 0:03:00]}  Nc6 {[%clk 0:02:59]} 3. Bb5 {[%clk 0:03:00]}  a6 {[%clk 0:02:59]} 4. Ba4 {[%clk 0:03:00]}  Nf6 {[%clk 0:02:59]} 5. d3 {[%clk 0:02:57]}  b5 {[%clk 0:02:58]} 6. Bb3 {[%clk 0:02:57]}  Bc5 {[%clk 0:02:59]} 7. c3 {[%clk 0:02:57]}  O-O {[%clk 0:02:58]} 8. Be3 {[%clk 0:02:57]}  Bxe3 {[%clk 0:02:52]} 9. fxe3 {[%clk 0:02:58]}  d6 {[%clk 0:02:52]} 10. Nbd2 {[%clk 0:02:57]}  Be6 {[%clk 0:02:51]} 11. O-O {[%clk 0:02:52]}  d5 {[%clk 0:02:49]} 12. Ng5 {[%clk 0:02:46]}  Bg4 {[%clk 0:02:48]} 13. Qe1 {[%clk 0:02:35]}  Bh5 {[%clk 0:02:46]} 14. Qh4 {[%clk 0:02:28]}  Bg6 {[%clk 0:02:46]} 15. Rad1 {[%clk 0:02:14]}  Na5 {[%clk 0:02:39]} 16. Bc2 {[%clk 0:01:46]}  dxe4 {[%clk 0:02:37]} 17. dxe4 {[%clk 0:01:32]}  Qe7 {[%clk 0:02:33]} 18. b4 {[%clk 0:01:26]}  Nb7 {[%clk 0:02:25]} 19. Qg3 {[%clk 0:00:58]}  c5 {[%clk 0:02:20]} 20. a3 {[%clk 0:00:47]}  a5 {[%clk 0:02:20]} 21. Ngf3 {[%clk 0:00:45]}  axb4 {[%clk 0:02:18]} 22. Nxe5 {[%clk 0:00:38]}  bxa3 {[%clk 0:02:18]} 23. Nxg6 {[%clk 0:00:37]}  hxg6 {[%clk 0:02:17]} 24. e5 {[%clk 0:00:38]}  Nh5 {[%clk 0:02:15]} 25. Qf3 {[%clk 0:00:39]}  Nd8 {[%clk 0:01:56]} 26. g4 {[%clk 0:00:39]}  Qxe5 {[%clk 0:01:51]} 27. Qxa8 {[%clk 0:00:37]}  Nf6 {[%clk 0:01:51]} 28. Qxa3 {[%clk 0:00:32]}  Qxe3+ {[%clk 0:01:51]} 29. Kh1 {[%clk 0:00:30]}  Nxg4 {[%clk 0:01:50]} 30. Nf3 {[%clk 0:00:17]}  Nf2+ {[%clk 0:01:48]} 31. Kg2 {[%clk 0:00:18]}  Nxd1 {[%clk 0:01:47]} 32. Bxd1 {[%clk 0:00:18]}  b4 {[%clk 0:01:47]} 33. Qb2 {[%clk 0:00:17]}  bxc3 {[%clk 0:01:47]} 34. Qc2 {[%clk 0:00:17]}  Ne6 {[%clk 0:01:47]} 35. Re1 {[%clk 0:00:18]}  Nf4+ {[%clk 0:01:07]} 36. Kf1 {[%clk 0:00:18]}  Qd3+ {[%clk 0:01:06]} 37. Qxd3 {[%clk 0:00:18]}  Nxd3 {[%clk 0:01:07]} 38. Re3 {[%clk 0:00:18]}  Rd8 {[%clk 0:01:05]} 39. Bc2 {[%clk 0:00:18]}  c4 {[%clk 0:01:01]} 40. Ne1 {[%clk 0:00:16]}  Nxe1 {[%clk 0:00:55]} 41. Rxc3 {[%clk 0:00:17]}  Nxc2 {[%clk 0:00:55]} 42. Rxc2 {[%clk 0:00:16]}  Rd4 {[%clk 0:00:55]} 43. Re2 {[%clk 0:00:16]}  f6 {[%clk 0:00:55]} 44. Re8+ {[%clk 0:00:14]}  Kf7 {[%clk 0:00:55]} 45. Rc8 {[%clk 0:00:15]}  g5 {[%clk 0:00:54]} 46. Ke2 {[%clk 0:00:14]}  Kg6 {[%clk 0:00:54]} 47. Ke3 {[%clk 0:00:14]}  Rh4 {[%clk 0:00:54]} 48. Rc7 {[%clk 0:00:12]}  c3 {[%clk 0:00:53]} 49. Rxc3 {[%clk 0:00:11]}  Rh3+ {[%clk 0:00:52]} 50. Kf2 {[%clk 0:00:12]} 0-1


[Site "https://www.chess.com"]